bitfinex/quotes_BTCUSD_20240818
["timestamp","ask_amount","ask_price","bid_price","bid_amount"]
[1724008517415,2.42250701,59668.0,59667.0,0.004064]
[1724008517616,2.42050701,59668.0,59667.0,0.004064]
[1724008517975,2.43450701,59668.0,59667.0,0.004064]
[1724008518299,2.44850701,59668.0,59667.0,0.004064]
[1724008518498,2.28400692,59668.0,59667.0,0.004064]
[1724008519277,2.29800692,59668.0,59667.0,0.004064]
[1724008520068,2.27000692,59668.0,59667.0,0.004064]
[1724008520571,2.28400692,59668.0,59667.0,0.004064]
[1724008521334,2.29800692,59668.0,59667.0,0.004064]
[1724008522215,2.28400692,59668.0,59667.0,0.004064]
[1724008522407,2.4232274,59668.0,59667.0,0.004064]
[1724008522606,2.4092274,59668.0,59667.0,0.004064]
[1724008523054,2.4232274,59668.0,59667.0,0.004064]
[1724008523965,2.29800692,59668.0,59667.0,0.004064]
[1724008524293,2.37312172,59668.0,59667.0,0.004064]
[1724008525533,2.29800692,59668.0,59667.0,0.004064]
[1724008526766,2.34806276,59668.0,59667.0,0.004064]
[1724008530115,2.30472692,59668.0,59667.0,0.004064]
[1724008535209,2.35475271,59668.0,59667.0,0.004064]
[1724008535422,2.30472692,59668.0,59667.0,0.004064]
[1724008535831,2.35475189,59668.0,59667.0,0.004064]
[1724008536899,2.30472692,59668.0,59667.0,0.004064]
[1724008537378,2.35475189,59668.0,59667.0,0.004064]
[1724008539117,2.53935792,59668.0,59667.0,1e-06]
[1724008539317,2.53935792,59668.0,59665.0,0.0009064]
[1724008539318,1.056875,59666.0,59665.0,4e-07]
[1724008539547,1.88268792,59666.0,59665.0,4e-07]
[1724008539748,2.24236845,59666.0,59665.0,4e-07]
[1724008540349,2.30082126,59666.0,59665.0,4e-07]
[1724008540578,2.30082126,59666.0,59663.0,2e-07]
[1724008540579,1.056893,59665.0,59663.0,2e-07]
[1724008540790,1.056893,59665.0,59660.0,2e-07]
[1724008540791,0.413288,59661.0,59660.0,2e-07]
[1724008540957,1.44891273,59661.0,59660.0,2e-07]
[1724008541166,1.57192623,59661.0,59660.0,2e-07]
[1724008541368,2.17588973,59661.0,59660.0,2e-07]
[1724008541528,2.41054873,59661.0,59660.0,2e-07]
[1724008541736,2.35209592,59661.0,59660.0,2e-07]
[1724008541933,2.36609592,59661.0,59660.0,2e-07]
[1724008542135,2.35209592,59661.0,59660.0,2e-07]
[1724008542338,2.45206732,59661.0,59660.0,2e-07]
[1724008542577,2.36609592,59661.0,59660.0,2e-07]
[1724008542784,2.38009592,59661.0,59660.0,2e-07]
[1724008543424,2.48007408,59661.0,59660.0,2e-07]
[1724008547913,2.39092907,59661.0,59660.0,2e-07]
[1724008549154,2.49089643,59661.0,59660.0,2e-07]
[1724008550527,2.39013989,59661.0,59660.0,2e-07]
[1724008552237,2.39013989,59661.0,59660.0,0.0762002]
[1724008552480,2.51509909,59661.0,59660.0,0.0762002]
[1724008553655,2.51515194,59661.0,59660.0,0.0762002]
[1724008554482,2.39013989,59661.0,59660.0,0.0762002]
[1724008556549,2.09518089,59661.0,59660.0,0.0762002]
[1724008567379,2.24561001,59661.0,59660.0,0.0762002]
[1724008567849,1.77882189,59661.0,59660.0,0.1423002]
[1724008568068,1.86052189,59661.0,59660.0,0.1423002]
[1724008569150,1.86134689,59661.0,59660.0,0.1423002]
[1724008569567,1.86113607,59661.0,59660.0,0.1423002]
[1724008569793,1.86134689,59661.0,59660.0,0.1423002]
[1724008570448,1.86113607,59661.0,59660.0,0.1423002]
[1724008572036,1.86134689,59661.0,59660.0,0.1423002]
[1724008574126,1.86113607,59661.0,59660.0,0.1423002]
[1724008580388,2.01164928,59661.0,59660.0,0.1423002]
[1724008582320,1.86113607,59661.0,59660.0,0.1423002]
[1724008583845,2.01177977,59661.0,59660.0,0.1423002]
[1724008584294,1.86113607,59661.0,59660.0,0.1423002]
[1724008585139,1.86113607,59661.0,59660.0,0.0762002]
[1724008590020,1.77943607,59661.0,59660.0,0.1399002]
[1724008590158,1.86113607,59661.0,59660.0,0.1399002]
[1724008591219,2.01178205,59661.0,59660.0,0.1399002]
[1724008592287,1.86113607,59661.0,59660.0,0.1399002]
[1724008598229,1.83313607,59661.0,59660.0,0.1399002]
[1724008598438,1.84713607,59661.0,59660.0,0.1399002]
[1724008598594,1.86113607,59661.0,59660.0,0.1399002]
[1724008605112,1.28756127,59661.0,59660.0,0.1399002]
[1724008605338,1.23733106,59661.0,59660.0,0.1399002]
[1724008605573,1.18711807,59661.0,59660.0,0.1399002]
[1724008606654,1.28711807,59661.0,59660.0,0.1399002]
[1724008606881,1.27311807,59661.0,59660.0,0.1399002]
[1724008607083,1.25911807,59661.0,59660.0,0.1399002]
[1724008607372,1.27311807,59661.0,59660.0,0.1399002]
[1724008607502,1.28711807,59661.0,59660.0,0.1399002]
[1724008608135,1.36881807,59661.0,59660.0,0.1399002]
[1724008620419,0.70696692,59661.0,59660.0,0.1399002]
[1724008620624,0.64745927,59661.0,59660.0,0.1399002]
[1724008620827,0.53013027,59661.0,59660.0,0.1399002]
[1724008621241,0.50213027,59661.0,59660.0,0.14068938]
[1724008621534,0.51613027,59661.0,59660.0,0.17896104]
[1724008621745,0.53013027,59661.0,59660.0,0.17896104]
[1724008621959,0.51613027,59661.0,59660.0,0.17896104]
[1724008622356,0.52913027,59661.0,59660.0,0.17896104]
[1724008622558,0.64645927,59661.0,59660.0,0.17896104]
[1724008622959,0.63245927,59661.0,59660.0,0.14068938]
[1724008623115,0.64445927,59661.0,59660.0,0.14068938]
[1724008630792,0.87911827,59661.0,59660.0,0.14068938]
[1724008630997,0.87911827,59661.0,59660.0,0.1399002]
[1724008630998,1.17371722,59661.0,59660.0,0.1399002]
[1724008636492,1.1843031,59661.0,59660.0,0.1399002]
[1724008641984,1.17371722,59661.0,59660.0,0.15396914]
[1724008643138,0.93905822,59661.0,59660.0,0.15396914]
[1724008647954,0.17949446,59661.0,59660.0,0.82711532]
[1724008648156,0.03625451,59661.0,59660.0,1.06177832]
[1724008648407,0.000824,59668.0,59667.0,0.35674118]
[1724008648613,0.05023864,59688.0,59667.0,0.2667633]
[1724008648839,0.235375,59689.0,59667.0,0.2667633]
[1724008648840,0.000825,59689.0,59682.0,0.1446]
[1724008649042,0.000825,59689.0,59683.0,0.02303]
[1724008649253,0.000825,59689.0,59684.0,0.078]
[1724008649666,0.000825,59689.0,59685.0,0.078]
[1724008650307,0.000825,59689.0,59688.0,0.66517118]
[1724008650517,0.000825,59689.0,59688.0,0.8080883]
[1724008650744,0.000825,59689.0,59688.0,0.8100883]
[1724008651148,0.010825,59689.0,59688.0,0.8100883]
[1724008651594,0.023825,59689.0,59688.0,0.8100883]
[1724008652214,0.014825,59689.0,59688.0,0.8100883]
[1724008652420,0.018825,59689.0,59688.0,1.0446413]
[1724008654388,0.000825,59703.0,59700.0,0.58905118]
[1724008654597,0.000825,59703.0,59700.0,0.81735118]
[1724008655028,0.000825,59703.0,59700.0,0.58284618]
[1724008655238,0.000825,59703.0,59700.0,0.81735118]
[1724008655472,0.009824,59701.0,59700.0,1.05285618]
[1724008655675,0.009824,59701.0,59700.0,1.1581418]
[1724008656082,0.000824,59712.0,59711.0,0.82540618]
[1724008656291,0.000824,59712.0,59711.0,1.04890618]
[1724008656518,0.000824,59712.0,59711.0,0.96720618]
[1724008656736,0.000824,59712.0,59711.0,1.0843168]
[1724008657661,0.00825,59721.0,59713.0,0.00478918]
[1724008657809,0.00825,59721.0,59713.0,1.37418672]
[1724008658027,0.00825,59721.0,59713.0,1.42229162]
[1724008658239,0.00825,59721.0,59720.0,0.824494]
[1724008658428,0.00825,59721.0,59720.0,0.966294]
[1724008658713,0.00825,59721.0,59720.0,0.96708318]
[1724008658953,0.00825,59721.0,59720.0,1.24561508]
[1724008659167,0.00825,59721.0,59720.0,1.24961508]
[1724008659400,0.00825,59721.0,59720.0,1.34618559]
[1724008659612,0.00825,59721.0,59720.0,1.34218559]
[1724008659814,0.00825,59721.0,59720.0,1.34618559]
[1724008660435,0.000824,59728.0,59727.0,0.96698518]
[1724008660635,0.000824,59728.0,59727.0,1.31099751]
[1724008660856,0.000824,59728.0,59727.0,1.54539651]
[1724008661066,1e-08,59728.0,59727.0,1.54539651]
[1724008661683,0.00100001,59728.0,59727.0,1.33399751]
[1724008661887,0.00100001,59728.0,59727.0,1.29026536]
[1724008662093,1e-08,59728.0,59727.0,1.28026536]
[1724008662360,1e-08,59728.0,59727.0,1.07636536]
[1724008662538,0.00100001,59728.0,59727.0,1.08736536]
[1724008662931,0.00100001,59728.0,59727.0,1.0837837]
[1724008663637,0.00100001,59728.0,59727.0,1.08736536]
[1724008665239,0.00824,59737.0,59732.0,0.66653166]
[1724008665418,0.00824,59737.0,59732.0,0.73318483]
[1724008665612,0.00824,59737.0,59732.0,1.03315401]
[1724008667106,0.001824,59733.0,59732.0,1.03915401]
[1724008667314,0.001824,59733.0,59732.0,0.80119235]
[1724008667709,0.001824,59733.0,59732.0,0.80477401]
[1724008667914,0.002824,59733.0,59732.0,0.81077401]
[1724008668107,0.002824,59733.0,59732.0,0.80719235]
[1724008668513,0.002824,59733.0,59732.0,0.81077401]
[1724008669521,0.002824,59733.0,59732.0,0.74412084]
[1724008670609,0.002824,59733.0,59732.0,0.50974084]
[1724008670803,0.00824,59737.0,59735.0,0.35434118]
[1724008671614,0.00824,59737.0,59735.0,0.35592284]
[1724008671819,0.00824,59737.0,59735.0,0.43033312]
[1724008672355,0.00824,59737.0,59735.0,0.42675146]
[1724008672556,0.00824,59737.0,59735.0,0.43333312]
[1724008672760,0.00824,59737.0,59735.0,0.42975146]
[1724008673575,0.00824,59737.0,59735.0,0.19538346]
[1724008673902,0.00824,59737.0,59735.0,0.08019946]
[1724008674356,0.00824,59737.0,59735.0,0.19738346]
[1724008674503,0.00824,59737.0,59735.0,0.19538346]
[1724008674911,0.00824,59737.0,59735.0,0.07519946]
[1724008675336,0.1177727,59739.0,59735.0,0.07619946]
[1724008675531,0.1177727,59739.0,59736.0,0.05721411]
[1724008675903,0.0005957,59739.0,59738.0,0.43132318]
[1724008676102,0.00825,59749.0,59738.0,0.43132318]
[1724008676103,0.117163,59746.0,59742.0,0.00358166]
[1724008676310,0.117163,59746.0,59743.0,0.03551037]
[1724008677399,0.117163,59746.0,59743.0,0.03251037]
[1724008677966,0.126163,59746.0,59743.0,0.03351037]
[1724008678152,0.117164,59745.0,59743.0,0.03351037]
[1724008678349,0.117164,59745.0,59744.0,0.0154264]
[1724008679321,0.351493,59745.0,59744.0,0.0154264]
[1724008679474,0.018,59746.0,59743.0,0.00278918]
[1724008679475,0.117166,59744.0,59743.0,0.00278918]
[1724008679671,0.018,59746.0,59737.0,0.117179]
[1724008679894,0.234337,59743.0,59733.0,0.46875]
[1724008680093,0.234337,59743.0,59731.0,0.001]
[1724008680094,0.117162,59747.0,59738.0,0.0621]
[1724008680296,0.013,59745.0,59744.0,0.352499]
[1724008680694,0.013,59745.0,59744.0,0.351499]
[1724008680695,0.008,59745.0,59744.0,0.351499]
[1724008680916,0.008,59745.0,59744.0,0.35308066]
[1724008681121,0.009,59746.0,59745.0,0.117164]
[1724008681296,0.009,59746.0,59745.0,0.15405373]
[1724008681532,0.009,59746.0,59745.0,0.15247207]
[1724008682278,0.009,59746.0,59745.0,0.15405373]
[1724008682454,0.009,59746.0,59745.0,0.15247207]
[1724008682793,0.009,59746.0,59745.0,0.23407207]
[1724008682992,0.125407,59749.0,59745.0,0.23407207]
[1724008683197,0.00825,59749.0,59746.0,0.04594121]
[1724008683896,0.00825,59749.0,59746.0,0.16310221]
[1724008684453,0.01225,59749.0,59746.0,0.16310221]
[1724008684837,0.01625,59749.0,59746.0,0.04594121]
[1724008685039,0.133407,59749.0,59746.0,0.04594121]
[1724008685241,0.129407,59749.0,59747.0,0.02019391]
[1724008685866,0.129407,59749.0,59745.0,0.198764]
[1724008686688,0.125407,59749.0,59745.0,0.198764]
[1724008686892,0.117163,59746.0,59742.0,0.0816]
[1724008687225,0.117163,59746.0,59742.0,0.23673197]
[1724008687364,0.117163,59746.0,59743.0,0.02048794]
[1724008687567,0.117163,59746.0,59742.0,0.23673197]
[1724008687568,0.117159,59748.0,59744.0,0.02048794]
[1724008687767,0.117159,59748.0,59745.0,0.01416326]
[1724008687973,0.00825,59749.0,59745.0,0.01416326]
[1724008688597,0.125407,59749.0,59745.0,0.01416326]
[1724008688803,0.125407,59749.0,59744.0,0.1200724]
[1724008689301,0.117159,59748.0,59744.0,0.1200724]
[1724008689856,0.117161,59747.0,59744.0,0.0029064]
[1724008690068,0.242564,59749.0,59744.0,0.0009064]
[1724008690266,0.117159,59748.0,59744.0,0.0029064]
[1724008690851,0.117159,59748.0,59744.0,0.0009064]
[1724008691082,1e-08,59748.0,59744.0,0.16347454]
[1724008691433,0.11715901,59748.0,59744.0,0.16347454]
[1724008691635,1e-08,59748.0,59744.0,0.16147354]
[1724008691864,1e-08,59748.0,59745.0,0.06822727]
[1724008692073,1e-08,59748.0,59745.0,0.16490395]
[1724008692274,1e-08,59748.0,59745.0,0.04774095]
[1724008692681,1e-08,59748.0,59746.0,0.1437]
[1724008692885,1e-08,59748.0,59746.0,0.260862]
[1724008693084,1e-08,59748.0,59747.0,0.05882475]
[1724008693917,1e-08,59748.0,59747.0,0.17598475]
[1724008694375,1e-08,59748.0,59747.0,0.17798475]
[1724008694573,1e-08,59748.0,59747.0,0.41230575]
[1724008695176,1e-08,59748.0,59747.0,0.41030575]
[1724008695470,1e-08,59748.0,59747.0,0.41330575]
[1724008696382,1e-08,59748.0,59747.0,0.41630575]
[1724008696568,1e-08,59748.0,59747.0,0.006]
[1724008700190,0.00082401,59748.0,59747.0,0.006]
[1724008701214,0.06063085,59748.0,59747.0,0.05592419]
[1724008701424,0.06063085,59748.0,59747.0,0.45235487]
[1724008701831,0.06063085,59748.0,59747.0,0.56361495]
[1724008702041,0.0004211,59748.0,59747.0,0.19214637]
[1724008702436,0.0004211,59748.0,59747.0,0.58857705]
[1724008702597,0.0004211,59748.0,59747.0,0.48872867]
[1724008703162,0.0004211,59748.0,59747.0,0.19253835]
[1724008703365,0.0004211,59748.0,59747.0,0.11726008]
[1724008703744,0.1175791,59748.0,59747.0,0.11726008]
[1724008704436,0.1175791,59748.0,59747.0,0.16744578]
[1724008705054,0.3518961,59748.0,59747.0,0.0561857]
[1724008705266,0.95964022,59748.0,59747.0,0.006]
[1724008705470,0.72532322,59748.0,59747.0,0.006]
[1724008706022,0.351493,59745.0,59744.0,0.0009064]
[1724008706229,0.05981012,59745.0,59744.0,0.1991724]
[1724008706431,0.0014211,59748.0,59746.0,0.117162]
[1724008706677,0.0014211,59748.0,59747.0,0.11716]
[1724008706886,0.0014211,59748.0,59746.0,0.00334711]
[1724008706887,0.0004211,59748.0,59746.0,0.00334711]
[1724008707089,0.0004211,59748.0,59747.0,0.19826]
[1724008707090,0.0054211,59748.0,59747.0,0.19826]
[1724008707289,0.0054211,59748.0,59747.0,0.50120745]
[1724008707635,0.0024211,59748.0,59747.0,0.50120745]
[1724008707828,0.0004211,59748.0,59747.0,0.50420745]
[1724008708065,0.0004211,59748.0,59747.0,0.80432845]
[1724008708497,0.0004211,59748.0,59747.0,0.80274679]
[1724008708709,0.0004211,59748.0,59747.0,0.85296006]
[1724008708934,0.0004211,59748.0,59747.0,0.80274679]
[1724008709319,0.0004211,59748.0,59747.0,0.8780667]
[1724008709525,0.0004211,59748.0,59747.0,1.03706779]
[1724008709786,0.0004211,59748.0,59747.0,0.8780667]
[1724008710441,0.0004211,59748.0,59747.0,0.80274679]
[1724008711271,0.0004211,59748.0,59747.0,1.03864945]
[1724008711505,0.0004211,59748.0,59747.0,0.80432845]
[1724008711683,0.0004211,59748.0,59747.0,1.08669949]
[1724008712151,0.0014211,59748.0,59747.0,1.09869949]
[1724008712330,0.0014211,59748.0,59747.0,1.09569949]
[1724008712644,0.0014211,59748.0,59747.0,0.86137849]
[1724008713071,0.0014211,59748.0,59747.0,1.09569949]
[1724008713264,0.0014211,59748.0,59747.0,1.10469949]
[1724008713421,0.0014211,59748.0,59747.0,1.10469185]
[1724008714015,0.0014211,59748.0,59747.0,1.50114913]
[1724008714268,0.0014211,59748.0,59747.0,1.04555585]
[1724008714492,0.0014211,59748.0,59747.0,1.12074882]
[1724008714606,0.0014211,59748.0,59747.0,1.04555585]
[1724008714811,0.0004211,59748.0,59747.0,1.03197419]
[1724008715105,0.0004211,59748.0,59747.0,1.03355585]
[1724008715318,0.0004211,59748.0,59747.0,1.04655585]
[1724008715485,0.0004211,59748.0,59747.0,1.09668604]
[1724008715689,0.0004211,59748.0,59747.0,1.10768604]
[1724008716039,0.0004211,59748.0,59747.0,1.03355585]
[1724008716253,0.0004211,59748.0,59747.0,1.04755585]
[1724008716460,0.0004211,59748.0,59747.0,1.09767764]
[1724008716894,0.00844,59759.0,59747.0,1.09767764]
[1724008716895,0.00844,59759.0,59758.0,0.585695]
[1724008717096,0.00844,59759.0,59758.0,1.53978518]
[1724008717302,0.00844,59759.0,59758.0,1.77564484]
[1724008717938,0.00844,59759.0,59758.0,1.90087548]
[1724008718162,0.0002,59779.0,59773.0,0.00158166]
[1724008718366,0.0002,59779.0,59778.0,0.197499]
[1724008718576,0.0002,59779.0,59778.0,0.665897]
[1724008718775,0.0002,59779.0,59778.0,0.66747866]
[1724008718978,0.0002,59779.0,59778.0,1.03262553]
[1724008719181,0.0002,59779.0,59778.0,1.40808007]
[1724008719438,0.0002,59779.0,59778.0,1.23652553]
[1724008719636,0.0002,59779.0,59778.0,1.24652553]
[1724008720057,0.0002,59779.0,59778.0,1.23652553]
[1724008720461,0.0002,59779.0,59778.0,1.25052553]
[1724008720667,0.0002,59779.0,59778.0,1.26052553]
[1724008720956,0.0002,59779.0,59778.0,1.25052553]
[1724008721154,0.0002,59779.0,59778.0,1.26452553]
[1724008721472,0.0002,59779.0,59778.0,1.25052553]
[1724008722184,0.0002,59779.0,59778.0,1.26452553]
[1724008722873,0.0002,59779.0,59778.0,0.75967866]
[1724008723023,0.0002,59779.0,59778.0,0.693897]
[1724008723295,0.001024,59779.0,59778.0,0.69547866]
[1724008724032,0.001024,59779.0,59778.0,0.445698]
[1724008724252,0.001024,59779.0,59778.0,0.014]
[1724008724459,0.001024,59779.0,59778.0,0.026]
[1724008724460,0.118121,59779.0,59778.0,0.026]
[1724008724897,0.001024,59779.0,59778.0,0.223499]
[1724008725074,0.001024,59779.0,59778.0,0.49162667]
[1724008725319,0.001024,59779.0,59778.0,0.679897]
[1724008725516,0.001024,59779.0,59778.0,0.665897]
[1724008725799,0.001024,59779.0,59778.0,0.677897]
[1724008726208,0.001024,59779.0,59778.0,0.665897]
[1724008726435,0.001024,59779.0,59778.0,0.7559076]
[1724008726549,0.001024,59779.0,59778.0,0.76648926]
[1724008727021,0.001024,59779.0,59778.0,0.76848926]
[1724008727191,0.001024,59779.0,59778.0,0.76648926]
[1724008727588,0.001024,59779.0,59778.0,0.77548926]
[1724008729493,0.001024,59779.0,59778.0,0.60507866]
[1724008731732,0.001024,59779.0,59778.0,0.74167866]
[1724008732140,0.001024,59779.0,59778.0,0.740097]
[1724008732352,0.001024,59779.0,59778.0,0.731097]
[1724008732538,0.001024,59779.0,59778.0,0.73267866]
[1724008732756,0.001024,59779.0,59778.0,0.82778577]
[1724008732976,0.001024,59779.0,59778.0,0.81878577]
[1724008733379,0.001024,59779.0,59778.0,0.84078577]
[1724008734534,0.001024,59779.0,59778.0,0.84236743]
[1724008734743,0.001024,59779.0,59778.0,0.54706843]
[1724008734947,0.118121,59779.0,59778.0,0.022]
[1724008735154,0.001024,59779.0,59778.0,0.022]
[1724008735387,0.118121,59779.0,59778.0,0.022]
[1724008735627,0.352316,59779.0,59778.0,0.022]
[1724008735965,0.664411,59779.0,59778.0,0.011]
[1724008736072,0.664411,59779.0,59766.0,0.234244]
[1724008736073,0.117109,59773.0,59768.0,0.117118]
[1724008736283,0.078924,59779.0,59768.0,0.117118]
[1724008736584,0.430216,59779.0,59778.0,0.002]
[1724008736795,0.117114,59771.0,59767.0,0.1405444]
[1724008736999,0.117114,59771.0,59763.0,0.234255]
[1724008737000,0.117117,59770.0,59765.0,0.117123]
[1724008737207,0.117117,59770.0,59766.0,0.117122]
[1724008737411,0.117117,59770.0,59765.0,0.117124]
[1724008737608,0.234225,59772.0,59768.0,0.001]
[1724008737814,0.117116,59770.0,59768.0,0.001]
[1724008738017,0.117116,59770.0,59766.0,0.117123]
[1724008739416,0.1458,59773.0,59765.0,0.118124]
[1724008739581,0.117118,59769.0,59766.0,0.002]
[1724008739966,0.117118,59769.0,59766.0,0.003]
[1724008740172,0.117118,59769.0,59766.0,0.002]
[1724008740381,0.234228,59771.0,59766.0,0.119123]
[1724008740572,0.117116,59770.0,59766.0,0.119123]
[1724008740978,0.117116,59770.0,59766.0,0.118123]
[1724008741377,0.117116,59770.0,59766.0,0.120123]
[1724008742398,0.117116,59770.0,59766.0,0.118123]
[1724008742740,0.117116,59770.0,59766.0,0.117123]
[1724008743575,0.117113,59772.0,59767.0,0.11712]
[1724008744778,0.121113,59772.0,59767.0,0.11712]
[1724008745184,0.117113,59771.0,59767.0,0.11712]
[1724008745481,0.117113,59771.0,59768.0,0.03948964]
[1724008746091,0.119112,59772.0,59764.0,0.234254]
[1724008746281,0.119112,59772.0,59767.0,0.117121]
[1724008746406,0.001,59771.0,59767.0,0.117121]
[1724008746767,0.119112,59772.0,59768.0,0.1756813]
[1724008746970,0.118113,59771.0,59768.0,0.0585623]
[1724008747177,0.117113,59771.0,59768.0,0.0585623]
[1724008747384,0.118113,59771.0,59768.0,0.0585623]
[1724008747596,0.119113,59771.0,59769.0,0.1409]
[1724008747802,0.001024,59779.0,59778.0,1.076196]
[1724008748019,0.001024,59779.0,59778.0,1.7034508]
[1724008748224,0.0119187,59788.0,59787.0,0.41572766]
[1724008748475,0.0119187,59788.0,59787.0,1.50311966]
[1724008748664,0.0119187,59788.0,59787.0,1.51031542]
[1724008748869,0.0119187,59788.0,59787.0,1.84533239]
[1724008749290,0.0002,59799.0,59792.0,1.11813366]
[1724008749500,0.0002,59799.0,59792.0,1.41836098]
[1724008749768,0.0002,59799.0,59792.0,1.4686882]
[1724008749966,0.0002,59799.0,59792.0,1.58963282]
[1724008750377,0.0002,59799.0,59792.0,1.58805116]
[1724008750592,0.0002,59799.0,59792.0,1.58963282]
[1724008750794,0.0002,59799.0,59792.0,1.60363282]
[1724008751001,0.0002,59799.0,59792.0,0.974407]
[1724008751210,0.0002,59799.0,59792.0,0.912507]
[1724008751749,0.0002,59799.0,59792.0,0.58694366]
[1724008751955,0.0002,59799.0,59792.0,0.35279866]
[1724008752175,0.0002,59799.0,59792.0,0.60094366]
[1724008752392,0.0002,59799.0,59792.0,0.68287177]
[1724008752811,0.0002,59799.0,59792.0,0.91701677]
[1724008753021,0.0002,59799.0,59792.0,0.93101677]
[1724008753223,0.0002,59799.0,59792.0,0.91701677]
[1724008753447,0.0002,59799.0,59792.0,0.90301677]
[1724008753707,0.0002,59799.0,59792.0,0.92701677]
[1724008753889,0.0002,59799.0,59792.0,0.91701677]
[1724008754112,0.0002,59799.0,59792.0,0.99759843]
[1724008754641,0.0002,59799.0,59792.0,1.06159843]
[1724008754919,0.0002,59799.0,59792.0,1.04759843]
[1724008755485,0.0002,59799.0,59792.0,1.06001677]
[1724008755914,0.0002,59799.0,59792.0,1.07559843]
[1724008756135,0.0002,59799.0,59792.0,1.06001677]
[1724008756332,0.0002,59799.0,59792.0,1.07401677]
[1724008756532,0.0002,59799.0,59792.0,1.06001677]
[1724008757057,0.0002,59799.0,59792.0,1.07559843]
[1724008757242,0.0002,59799.0,59792.0,1.07401677]
[1724008757444,0.0002,59799.0,59792.0,1.06159843]
[1724008757610,0.0002,59799.0,59792.0,1.06001677]
[1724008757814,0.0002,59799.0,59792.0,1.06159843]
[1724008758020,0.0002,59799.0,59792.0,1.06001677]
[1724008758253,0.0002,59799.0,59792.0,0.92808866]
[1724008759085,0.0002,59799.0,59792.0,0.91408866]
[1724008759738,0.0002,59799.0,59792.0,0.90008866]
[1724008759962,0.0002,59799.0,59792.0,0.83508866]
[1724008760140,0.0002,59799.0,59792.0,0.84908866]
[1724008760314,0.0002,59799.0,59792.0,0.91156514]
[1724008760521,0.0002,59799.0,59792.0,0.60094366]
[1724008760723,0.0002,59799.0,59792.0,0.61494366]
[1724008761552,0.0002,59799.0,59792.0,0.847507]
[1724008762152,0.0002,59799.0,59792.0,0.61494366]
[1724008762938,0.0002,59799.0,59792.0,0.613362]
[1724008763147,0.0002,59799.0,59795.0,0.58691366]
[1724008763821,0.0002,59799.0,59795.0,0.585332]
[1724008764204,0.0002,59799.0,59795.0,0.598332]
[1724008764381,0.00923,59796.0,59795.0,0.598332]
[1724008764580,0.00923,59796.0,59795.0,0.69427961]
[1724008765337,0.00923,59796.0,59795.0,0.69269795]
[1724008765886,0.00923,59796.0,59795.0,0.92683095]
[1724008766490,0.00923,59796.0,59795.0,0.94141261]
[1724008766931,0.00923,59796.0,59795.0,0.93983095]
[1724008767626,0.00923,59796.0,59795.0,1.01761261]
[1724008769548,0.00923,59796.0,59795.0,1.01603095]
[1724008770106,0.00923,59796.0,59795.0,1.31784561]
[1724008770291,0.00923,59796.0,59795.0,1.31626395]
[1724008770537,0.00923,59796.0,59795.0,1.31784561]
[1724008774860,0.00243841,59796.0,59795.0,1.72353315]
[1724008775056,0.0002,59799.0,59798.0,1.05512566]
[1724008775261,0.0002,59799.0,59798.0,1.23132566]
[1724008775438,0.0002,59799.0,59798.0,1.229744]
[1724008776235,0.0002,59799.0,59798.0,1.63641954]
[1724008776384,0.00040374,59803.0,59802.0,1.05605366]
[1724008776601,0.00040374,59803.0,59802.0,2.36596597]
[1724008776795,0.00040374,59803.0,59802.0,2.45522315]
[1724008777101,0.00040374,59803.0,59802.0,2.71422445]
[1724008777302,0.00823,59808.0,59805.0,1.05600466]
[1724008777647,0.00823,59808.0,59805.0,1.71833598]
[1724008777971,0.00823,59809.0,59805.0,1.71833598]
[1724008777972,0.00823,59809.0,59808.0,1.201869]
[1724008778124,0.00823,59809.0,59808.0,1.98404288]
[1724008778337,1e-08,59809.0,59808.0,1.94358832]
[1724008778527,1e-08,59809.0,59808.0,2.09315431]
[1724008779078,1e-08,59809.0,59808.0,1.85507231]
[1724008779494,1e-08,59809.0,59808.0,1.80945393]
[1724008779704,1e-08,59809.0,59808.0,2.05353593]
[1724008779946,1e-08,59809.0,59808.0,1.79545393]
[1724008780147,1e-08,59809.0,59808.0,1.78627115]
[1724008780359,1e-08,59809.0,59808.0,1.78144955]
[1724008780620,1e-08,59809.0,59808.0,1.78627115]
[1724008780826,1e-08,59809.0,59808.0,1.80027115]
[1724008781353,0.00011,59828.0,59827.0,0.96810966]
[1724008781560,0.00011,59828.0,59827.0,1.67699054]
[1724008781771,0.00011,59828.0,59827.0,1.6785722]
[1724008781978,0.00011,59828.0,59827.0,1.92174936]
[1724008782179,0.00011,59828.0,59827.0,1.97305989]
[1724008782387,0.00011,59828.0,59827.0,1.99605989]
[1724008782584,0.00011,59828.0,59827.0,2.01005989]
[1724008782789,0.00011,59828.0,59827.0,2.08274362]
[1724008783199,0.00011,59828.0,59827.0,2.0735752]
[1724008783543,0.00011,59828.0,59827.0,1.81555168]
[1724008783714,0.00011,59828.0,59827.0,0.98998935]
[1724008784599,0.00011,59828.0,59827.0,1.19388935]
[1724008785007,0.00011,59828.0,59827.0,0.90908935]
[1724008785180,0.00011,59828.0,59827.0,0.84860966]
[1724008786485,0.00011,59828.0,59827.0,0.61460166]
[1724008788000,0.07223,59839.0,59836.0,0.116986]
[1724008788434,0.07223,59839.0,59835.0,0.233975]
[1724008788656,0.07223,59839.0,59836.0,0.116985]
[1724008789072,0.07223,59839.0,59835.0,0.25753117]
[1724008789073,0.07223,59839.0,59835.0,0.02355617]
[1724008789252,0.07223,59839.0,59836.0,0.007]
[1724008789495,0.07223,59839.0,59837.0,0.01475432]
[1724008789716,0.07223,59839.0,59836.0,0.013]
[1724008789717,0.233965,59838.0,59836.0,0.013]
[1724008789936,0.497252,59837.0,59836.0,0.013]
[1724008790145,0.73122,59837.0,59836.0,0.006]
[1724008790605,0.996188,59837.0,59836.0,0.006]
[1724008791018,1.095188,59837.0,59836.0,0.006]
[1724008791237,1.09660634,59837.0,59836.0,0.006]
[1724008791442,1.09660634,59837.0,59836.0,0.005588]
[1724008791875,0.1463,59824.0,59819.0,0.234036]
[1724008792088,0.1463,59824.0,59821.0,0.117015]
[1724008792299,0.1463,59824.0,59820.0,0.0934784]
[1724008792300,0.234023,59823.0,59820.0,0.0934784]
[1724008792511,0.234023,59823.0,59816.0,0.583724]
[1724008792512,0.0825,59820.0,59816.0,0.583724]